bitfinex/quotes_BTCUSD_20250623
["timestamp","ask_amount","ask_price","bid_price","bid_amount"]
[1750682821063,5e-05,101640.0,101630.0,0.63209052]
[1750682821278,5e-05,101640.0,101630.0,0.6421377]
[1750682821685,5e-05,101640.0,101630.0,0.96968491]
[1750682823215,5e-05,101640.0,101630.0,0.96968511]
[1750682823427,0.03,101660.0,101650.0,0.2939687]
[1750682823547,0.03013878,101660.0,101650.0,0.91617308]
[1750682824594,0.03013878,101660.0,101650.0,0.92117308]
[1750682825233,0.03013878,101660.0,101650.0,1.01617308]
[1750682825450,0.03013878,101660.0,101650.0,1.02317308]
[1750682826159,0.03013878,101660.0,101650.0,1.02417308]
[1750682826392,0.03013878,101660.0,101650.0,1.11997308]
[1750682826589,0.03013878,101660.0,101650.0,1.13197308]
[1750682828048,0.03013878,101660.0,101650.0,1.13997308]
[1750682828764,0.03013878,101660.0,101650.0,1.03529308]
[1750682829173,0.03013878,101660.0,101650.0,1.13909308]
[1750682829578,0.03013878,101660.0,101650.0,1.43619308]
[1750682830420,0.03013878,101660.0,101650.0,1.46575808]
[1750682830599,0.03013878,101660.0,101650.0,1.41575808]
[1750682830920,0.03013878,101660.0,101650.0,1.46575808]
[1750682831320,0.03013878,101660.0,101650.0,1.4755678]
[1750682833339,0.00405,101670.0,101660.0,0.35368402]
[1750682833547,0.00405,101670.0,101660.0,1.08036329]
[1750682834017,0.00405,101670.0,101660.0,1.08441329]
[1750682834625,0.00405,101670.0,101660.0,1.09141329]
[1750682834815,0.00405,101670.0,101660.0,1.49231329]
[1750682835053,5e-05,101690.0,101680.0,0.59202944]
[1750682835261,5e-05,101690.0,101680.0,0.90504883]
[1750682835762,5e-05,101690.0,101680.0,0.89930474]
[1750682835968,5e-05,101690.0,101680.0,0.47022018]
[1750682836177,5e-05,101690.0,101680.0,0.68290018]
[1750682836375,5e-05,101690.0,101680.0,0.88943036]
[1750682836612,5e-05,101690.0,101680.0,0.88559569]
[1750682836826,5e-05,101690.0,101680.0,0.89926513]
[1750682837035,5e-05,101690.0,101680.0,0.90909961]
[1750682837238,5e-05,101690.0,101680.0,0.91709961]
[1750682837643,5e-05,101690.0,101680.0,0.926934]
[1750682837868,5e-05,101690.0,101680.0,0.92693409]
[1750682838257,5e-05,101690.0,101680.0,0.93676838]
[1750682838470,5e-05,101690.0,101680.0,1.2378677]
[1750682838896,5e-05,101690.0,101680.0,1.2338677]
[1750682839126,5e-05,101690.0,101680.0,1.2338678]
[1750682839333,5e-05,101690.0,101680.0,1.23886722]
[1750682839756,5e-05,101690.0,101680.0,1.36800854]
[1750682839987,5e-05,101690.0,101680.0,1.35817445]
[1750682840197,5e-05,101690.0,101680.0,1.05651894]
[1750682840427,0.01004,101730.0,101720.0,0.30205057]
[1750682840662,0.01004,101730.0,101720.0,0.61823018]
[1750682840884,0.0105028,101730.0,101720.0,0.11484024]
[1750682841101,0.64785885,101730.0,101720.0,0.11484024]
[1750682841388,0.70945885,101730.0,101720.0,0.13006724]
[1750682841629,0.70945885,101730.0,101720.0,0.11484024]
[1750682841857,0.64674599,101730.0,101720.0,0.10029939]
[1750682842077,0.64674599,101730.0,101720.0,0.10429939]
[1750682842078,0.07036611,101730.0,101720.0,0.10429939]
[1750682842299,0.00916611,101730.0,101720.0,0.10429939]
[1750682842521,0.29735605,101730.0,101720.0,0.11484024]
[1750682842743,0.64694599,101730.0,101720.0,0.11684024]
[1750682842967,0.66529921,101730.0,101720.0,0.27513939]
[1750682843185,0.66529921,101730.0,101720.0,0.10229939]
[1750682843399,0.66529921,101730.0,101720.0,0.10029939]
[1750682843611,0.66529921,101730.0,101720.0,0.10629939]
[1750682843840,0.66529921,101730.0,101720.0,0.10029939]
[1750682844050,0.66529945,101730.0,101720.0,0.10029939]
[1750682844268,0.66529945,101730.0,101720.0,0.10329939]
[1750682844699,0.66529945,101730.0,101720.0,0.10729939]
[1750682845124,0.66529945,101730.0,101720.0,0.10329939]
[1750682845337,0.64694599,101730.0,101720.0,0.10329939]
[1750682845591,0.64694599,101730.0,101720.0,0.10529939]
[1750682845822,0.98694599,101730.0,101720.0,0.005]
[1750682846044,1.00530639,101730.0,101720.0,0.005]
[1750682846512,0.34,101720.0,101690.0,0.029561]
[1750682846732,0.34,101720.0,101690.0,0.10029939]
[1750682846733,0.63827988,101700.0,101690.0,0.10029939]
[1750682846949,0.6474617,101700.0,101690.0,0.10029939]
[1750682847169,0.35927176,101700.0,101690.0,0.10029939]
[1750682848423,0.43068055,101700.0,101690.0,0.10029939]
[1750682848630,0.43068055,101700.0,101690.0,0.10229939]
[1750682849062,0.00918182,101700.0,101690.0,0.10629939]
[1750682849276,0.36878055,101700.0,101690.0,0.10229939]
[1750682849485,0.43068055,101700.0,101690.0,0.10229939]
[1750682849700,0.43068929,101700.0,101690.0,0.10429939]
[1750682851182,0.44910008,101700.0,101690.0,0.10429939]
[1750682851823,0.44910008,101700.0,101690.0,0.27069939]
[1750682853351,0.43068929,101700.0,101690.0,0.27069939]
[1750682853558,0.43068929,101700.0,101690.0,0.26997327]
[1750682855492,0.43070638,101700.0,101690.0,0.26997327]
[1750682856084,0.43070636,101700.0,101690.0,0.26997327]
[1750682856722,0.43070636,101700.0,101690.0,0.26977327]
[1750682856944,0.77070636,101700.0,101690.0,0.26977327]
[1750682858371,0.77070487,101700.0,101690.0,0.26977327]
[1750682859200,0.76149873,101700.0,101690.0,0.26965327]
[1750682859421,0.7891163,101700.0,101690.0,0.004]
[1750682859851,0.81266739,101700.0,101690.0,0.004]
[1750682860066,0.7891163,101700.0,101690.0,0.004]
[1750682860302,0.81266705,101700.0,101690.0,0.002]
[1750682860511,0.78910312,101700.0,101690.0,0.002]
[1750682861164,0.4003,101690.0,101670.0,0.166]
[1750682861378,0.35959873,101680.0,101670.0,0.10029939]
[1750682861597,0.35959873,101680.0,101670.0,0.17944071]
[1750682862438,0.35959873,101680.0,101670.0,0.18190351]
[1750682863076,0.34,101710.0,101670.0,0.18190351]
[1750682863300,0.0091911,101710.0,101700.0,0.09368217]
[1750682863509,0.001,101730.0,101710.0,0.0314]
[1750682863724,0.01018852,101730.0,101720.0,0.10029939]
[1750682863935,0.01018852,101730.0,101720.0,0.29765939]
[1750682864190,0.01018781,101730.0,101720.0,0.29765939]
[1750682864388,0.001,101730.0,101720.0,0.29765939]
[1750682864838,0.00113654,101730.0,101720.0,0.29765939]
[1750682865044,0.35959873,101740.0,101720.0,0.29865939]
[1750682865261,0.36878426,101740.0,101720.0,0.29865939]
[1750682866112,0.36878426,101740.0,101720.0,0.29965939]
[1750682866995,0.00918218,101740.0,101720.0,0.29965939]
[1750682867206,0.00918218,101740.0,101720.0,0.29865939]
[1750682867428,0.71363873,101750.0,101720.0,0.33125939]
[1750682867643,0.38281504,101750.0,101720.0,0.33125939]
[1750682867847,0.72281504,101750.0,101720.0,0.33125939]
[1750682868106,0.72281504,101750.0,101730.0,0.0311]
[1750682868319,0.38281504,101750.0,101740.0,0.10029939]
[1750682868759,0.72281504,101750.0,101740.0,0.10029939]
[1750682868965,0.72481504,101750.0,101740.0,0.10029939]
[1750682869194,0.72281504,101750.0,101740.0,0.10029939]
[1750682869417,0.71363873,101750.0,101740.0,0.10029939]
[1750682872239,0.71363873,101750.0,101730.0,0.16556]
[1750682872449,0.71363873,101750.0,101730.0,0.26585939]
[1750682872450,0.35959873,101740.0,101730.0,0.26585939]
[1750682872651,0.35959873,101740.0,101730.0,0.10029939]
[1750682872860,0.35959873,101740.0,101720.0,0.001]
[1750682872861,0.75979873,101740.0,101720.0,0.001]
[1750682873069,0.34,101740.0,101720.0,0.10129939]
[1750682873288,0.35959873,101730.0,101720.0,0.10129939]
[1750682879089,0.35959873,101730.0,101720.0,0.21144071]
[1750682880108,0.34,101740.0,101720.0,0.24354071]
[1750682880109,0.69959873,101740.0,101720.0,0.24354071]
[1750682880331,0.34,101740.0,101730.0,0.13179939]
[1750682883041,0.33901711,101740.0,101730.0,0.13179939]
[1750682884553,0.37363873,101750.0,101730.0,0.13179939]
[1750682884757,0.37363873,101750.0,101730.0,0.16489939]
[1750682886183,0.37563873,101750.0,101730.0,0.16489939]
[1750682886592,0.37563873,101750.0,101730.0,0.32985939]
[1750682886801,0.01604,101750.0,101730.0,0.52645773]
[1750682887018,0.01604,101750.0,101740.0,0.0317]
[1750682887019,0.35604,101750.0,101740.0,0.0317]
[1750682887261,0.71563873,101750.0,101740.0,0.13199939]
[1750682888299,0.71363873,101750.0,101740.0,0.13199939]
[1750682888748,0.71563873,101750.0,101740.0,0.13199939]
[1750682889142,0.35604,101750.0,101740.0,0.13199939]
[1750682889507,0.35604,101750.0,101740.0,0.16329939]
[1750682889865,0.01604,101750.0,101740.0,0.24244071]
[1750682890304,0.01604,101750.0,101740.0,0.16329939]
[1750682891369,0.01604,101750.0,101740.0,0.75698156]
[1750682891795,0.01604,101750.0,101740.0,0.95356107]
[1750682893030,0.01604,101750.0,101740.0,1.36191157]
[1750682893442,0.01604,101750.0,101740.0,1.21107284]
[1750682893649,0.01604,101750.0,101740.0,1.20124426]
[1750682894085,0.01604,101750.0,101740.0,1.19241539]
[1750682894291,0.01604,101750.0,101740.0,1.28075539]
[1750682894501,0.01404,101750.0,101740.0,1.49934436]
[1750682894707,0.01404,101750.0,101740.0,1.49934417]
[1750682894915,0.01404,101750.0,101740.0,1.49751539]
[1750682895103,0.01404,101750.0,101740.0,1.30093588]
[1750682895348,0.01404,101750.0,101740.0,1.09117588]
[1750682895553,0.01404,101750.0,101740.0,1.29993588]
[1750682895757,0.01404,101750.0,101740.0,1.30393588]
[1750682895965,0.01404,101750.0,101740.0,1.09517588]
[1750682896175,0.01404,101750.0,101740.0,1.30393588]
[1750682897222,0.01404,101750.0,101740.0,1.50051539]
[1750682897400,0.01404,101750.0,101740.0,1.86011412]
[1750682897632,0.01404,101750.0,101740.0,1.21324436]
[1750682897846,0.01404,101750.0,101740.0,1.22307323]
[1750682898051,0.01404,101750.0,101740.0,1.21324436]
[1750682899135,0.01404,101750.0,101740.0,1.20341539]
[1750682899350,0.01404,101750.0,101740.0,1.21320436]
[1750682899792,0.01404,101750.0,101740.0,1.22303314]
[1750682900027,0.01404,101750.0,101740.0,1.22303323]
[1750682900263,0.01404,101750.0,101740.0,1.23286201]
[1750682900467,0.01404,101750.0,101740.0,1.24269069]
[1750682901081,0.01404,101750.0,101740.0,1.58263196]
[1750682901527,0.01404,101750.0,101740.0,1.20337539]
[1750682901733,0.01404,101750.0,101740.0,1.21320436]
[1750682901937,0.01404,101750.0,101740.0,1.57280309]
[1750682902113,0.01404,101750.0,101740.0,1.58263187]
[1750682902384,0.01404,101750.0,101740.0,1.50044628]
[1750682902606,0.01404,101750.0,101740.0,1.50044618]
[1750682902809,0.01404,101750.0,101740.0,1.51027496]
[1750682903015,0.62724192,101770.0,101760.0,0.04724085]
[1750682903217,0.63656313,101770.0,101760.0,0.31226024]
[1750682904260,0.63656313,101770.0,101760.0,0.31326024]
[1750682904466,0.63656313,101770.0,101760.0,0.31226024]
[1750682904671,0.63656313,101770.0,101760.0,0.31326024]
[1750682904882,0.63656313,101770.0,101760.0,0.31426024]
[1750682905111,0.63656313,101770.0,101760.0,0.31626024]
[1750682905524,0.63656313,101770.0,101760.0,0.28352024]
[1750682905917,0.63656313,101770.0,101760.0,0.31382024]
[1750682908410,0.63656313,101770.0,101760.0,0.28352024]
[1750682908614,0.63656313,101770.0,101760.0,0.31492024]
[1750682910298,0.62738057,101770.0,101760.0,0.31492024]
[1750682910503,0.63656425,101770.0,101760.0,0.31492024]
[1750682910710,0.34932233,101770.0,101760.0,0.11884024]
[1750682910917,0.63656425,101770.0,101760.0,0.26897939]
[1750682911524,1.00457554,101770.0,101760.0,0.004]
[1750682911688,1.02882426,101770.0,101760.0,0.004]
[1750682911886,1.00457712,101770.0,101760.0,0.004]
[1750682912292,1.00457712,101770.0,101760.0,0.003]
[1750682912499,1.00457869,101770.0,101760.0,0.003]
[1750682912698,1.00457869,101770.0,101760.0,0.001]
[1750682914049,0.43009485,101770.0,101760.0,0.001]
[1750682914207,1.00457869,101770.0,101760.0,0.001]
[1750682914610,1.00658551,101770.0,101760.0,0.001]
[1750682914822,0.43210167,101770.0,101760.0,0.001]
[1750682915053,1.00658551,101770.0,101760.0,0.001]
[1750682915673,1.00658811,101770.0,101760.0,0.001]
[1750682915881,0.71934619,101770.0,101760.0,0.001]
[1750682916080,0.7193647,101770.0,101760.0,0.001]
[1750682917783,0.6891647,101770.0,101760.0,0.001]
[1750682919054,0.68918587,101770.0,101760.0,0.001]
[1750682921873,0.68919233,101770.0,101760.0,0.001]
[1750682922484,0.67999762,101770.0,101760.0,0.001]
[1750682922891,0.69178057,101770.0,101760.0,0.001]
[1750682925653,0.9882308,101770.0,101760.0,0.001]
[1750682925836,0.70098888,101770.0,101760.0,0.001]
[1750682926420,0.67078888,101770.0,101760.0,0.001]
[1750682927842,0.9882308,101770.0,101760.0,0.001]
[1750682930271,0.98823108,101770.0,101760.0,0.001]
[1750682932220,0.98823147,101770.0,101760.0,0.001]
[1750682933135,0.98823168,101770.0,101760.0,0.001]
[1750682935026,0.95803168,101770.0,101760.0,0.001]
[1750682935366,0.61803168,101770.0,101760.0,0.001]
[1750682936531,0.58583168,101770.0,101760.0,0.001]
[1750682937319,0.29859339,101770.0,101760.0,0.001]
[1750682937687,0.58583531,101770.0,101760.0,0.001]
[1750682937895,0.60426746,101770.0,101760.0,0.001]
[1750682938940,0.60427102,101770.0,101760.0,0.001]
[1750682940386,0.60427163,101770.0,101760.0,0.001]
[1750682940777,0.31702971,101770.0,101760.0,0.001]
[1750682941191,0.60427163,101770.0,101760.0,0.001]
[1750682941356,0.31703661,101770.0,101760.0,0.001]
[1750682941556,0.31705041,101770.0,101760.0,0.001]
[1750682942585,0.36980849,101770.0,101760.0,0.0665]
[1750682942755,0.65705041,101770.0,101760.0,0.0665]
[1750682943382,0.63860385,101770.0,101760.0,0.0665]
[1750682944831,0.65705077,101770.0,101760.0,0.0665]
[1750682945202,0.65705077,101770.0,101760.0,0.0349]
[1750682945652,0.36980885,101770.0,101760.0,0.16719939]
[1750682945832,0.63860385,101770.0,101760.0,0.16719939]
[1750682947345,0.63860351,101770.0,101760.0,0.16719939]
[1750682949347,0.62938057,101770.0,101760.0,0.16719939]
[1750682950865,0.34213865,101770.0,101760.0,0.16719939]
[1750682953231,0.62938057,101770.0,101760.0,0.16719939]
[1750682953660,0.62938057,101770.0,101760.0,0.33343939]
[1750682954898,0.62938057,101770.0,101760.0,0.16719939]
[1750682955122,0.62938057,101770.0,101760.0,0.33339939]
[1750682956317,0.62938057,101770.0,101760.0,0.16719939]
[1750682956521,0.62938057,101770.0,101760.0,0.33331939]
[1750682958404,0.62938057,101770.0,101760.0,0.16719939]
[1750682958614,0.62938057,101770.0,101760.0,0.33323939]
[1750682959243,0.28938057,101770.0,101760.0,0.33307939]
[1750682959506,0.00213865,101770.0,101760.0,0.33307939]
[1750682959734,0.28938057,101770.0,101760.0,0.33307939]
[1750682961678,0.57655702,101770.0,101760.0,0.10229939]
[1750682961920,0.57655702,101770.0,101760.0,0.002]
[1750682962131,0.58576303,101770.0,101760.0,0.002]
[1750682962340,0.2893151,101770.0,101760.0,0.002]
[1750682962558,0.29852163,101770.0,101760.0,0.002]
[1750682962774,0.58576355,101770.0,101760.0,0.034]
[1750682962986,0.29852163,101770.0,101760.0,0.034]
[1750682963247,0.58576355,101770.0,101760.0,0.034]
[1750682963460,0.58576355,101770.0,101760.0,0.002]
[1750682964320,0.58576355,101770.0,101760.0,0.001]
[1750682964745,0.58576451,101770.0,101760.0,0.001]
[1750682965781,0.58576451,101770.0,101760.0,0.0317]
[1750682967129,0.29856898,101770.0,101760.0,0.0317]
[1750682968163,0.29852259,101770.0,101760.0,0.03165361]
[1750682969261,0.92576451,101770.0,101760.0,0.00095361]
[1750682969494,0.402,101760.0,101740.0,0.5]
[1750682969725,0.97648384,101750.0,101740.0,0.5]
[1750682969938,0.98569133,101750.0,101740.0,0.5]
[1750682970154,1.03367303,101750.0,101740.0,0.5]
[1750682970359,1.03367839,101750.0,101740.0,0.5]
[1750682970586,0.74643647,101750.0,101740.0,0.5]
[1750682971039,0.74643639,101750.0,101740.0,0.5]
[1750682971249,0.69781069,101750.0,101740.0,0.5]
[1750682971910,0.70081069,101750.0,101740.0,0.5]
[1750682973192,0.70079751,101750.0,101740.0,0.5]
[1750682975119,0.69159792,101750.0,101740.0,0.5]
[1750682975776,0.72169792,101750.0,101740.0,0.5]
[1750682976200,0.73088961,101750.0,101740.0,0.5]
[1750682976421,0.70078961,101750.0,101740.0,0.5]
[1750682977679,0.69159792,101750.0,101740.0,0.5]
[1750682978477,0.65979792,101750.0,101740.0,0.5]
[1750682978684,1.00743984,101750.0,101740.0,0.5]
[1750682978891,1.01662433,101750.0,101740.0,0.5]
[1750682979112,5.85588473,101750.0,101740.0,0.5]
[1750682980096,5.82795072,101750.0,101740.0,0.5]
[1750682980721,5.82795083,101750.0,101740.0,0.5]
[1750682981149,5.81876623,101750.0,101740.0,0.5]
[1750682982129,5.47876623,101750.0,101740.0,0.5]
[1750682982332,5.31806684,101750.0,101740.0,0.5]
[1750682982740,5.36242684,101750.0,101740.0,0.5]
[1750682983152,5.31806684,101750.0,101740.0,0.5]
[1750682983353,5.36242684,101750.0,101740.0,0.5]
[1750682985310,0.81687984,101750.0,101740.0,0.5]
[1750682986279,0.032556,101750.0,101740.0,0.5312]
[1750682986501,0.29024192,101750.0,101740.0,0.72842]
[1750682986734,0.29024192,101750.0,101740.0,0.82871939]
[1750682988075,0.63024192,101750.0,101740.0,0.82871939]
[1750682994030,0.63024192,101750.0,101740.0,0.66339939]
[1750682994237,0.63024192,101750.0,101740.0,0.82947939]
[1750682996247,0.63024192,101750.0,101740.0,0.66339939]
[1750682996535,0.63024192,101750.0,101740.0,0.82939939]
[1750682997508,0.63024192,101750.0,101740.0,0.5]
[1750682997716,0.98928697,101750.0,101740.0,0.5]
[1750682997928,1.01722098,101750.0,101740.0,0.5]
[1750682998141,1.18314098,101750.0,101740.0,0.5]
[1750682998780,1.3621153,101750.0,101740.0,0.12273753]
[1750682998985,6.10489754,101750.0,101740.0,0.12273753]
[1750682999131,6.10490012,101750.0,101740.0,0.12273753]
[1750682999339,6.12848005,101750.0,101740.0,0.12273753]
[1750682999514,6.11865282,101750.0,101740.0,0.12273753]
[1750682999729,6.08389748,101750.0,101740.0,0.12273753]
[1750682999926,6.09972462,101750.0,101740.0,0.12273753]
[1750683000184,6.04928771,101750.0,101740.0,0.12273753]
[1750683000399,6.05911504,101750.0,101740.0,0.12273753]
[1750683000613,6.3070859,101750.0,101740.0,0.12273753]
[1750683000816,6.38743182,101750.0,101740.0,0.12273753]
[1750683001433,6.38743182,101750.0,101710.0,0.0639]
[1750683001434,0.62724192,101720.0,101710.0,0.0639]
[1750683002674,0.029564,101730.0,101720.0,0.0633]
[1750683002882,0.62724192,101730.0,101720.0,0.14244132]
[1750683003348,0.029562,101740.0,101720.0,0.14244132]
[1750683003551,0.03876432,101740.0,101730.0,0.0629]
[1750683003754,0.66600624,101740.0,101730.0,0.0629]
[1750683004837,0.6660063,101740.0,101730.0,0.0629]
[1750683005503,0.95324822,101740.0,101730.0,0.0629]
[1750683006154,0.95324822,101740.0,101730.0,0.0649]
[1750683007266,0.6660063,101740.0,101730.0,0.0649]
[1750683007704,0.65680392,101740.0,101730.0,0.0649]
[1750683007926,0.66600369,101740.0,101730.0,0.0649]
[1750683012044,0.65680392,101740.0,101730.0,0.0649]
[1750683012462,0.6660042,101740.0,101730.0,0.0649]
[1750683012894,0.65680392,101740.0,101730.0,0.0649]
[1750683013348,0.95324612,101740.0,101730.0,0.0649]
[1750683013582,0.95324612,101740.0,101730.0,0.002]
[1750683014483,0.98118013,101740.0,101730.0,0.002]
[1750683014695,0.95324612,101740.0,101730.0,0.002]
[1750683014876,0.94404584,101740.0,101730.0,0.002]
[1750683015113,0.95324481,101740.0,101730.0,0.002]
[1750683015753,0.94404584,101740.0,101730.0,0.002]
[1750683016154,0.95324483,101740.0,101730.0,0.002]
[1750683016600,0.98464483,101740.0,101730.0,0.002]
[1750683016801,1.08494422,101740.0,101730.0,0.002]
[1750683016982,1.11514422,101740.0,101730.0,0.002]
[1750683017212,5.86332517,101740.0,101730.0,0.002]
[1750683017451,0.28724192,101720.0,101710.0,0.0668628]
[1750683017872,0.62724192,101720.0,101710.0,0.0005628]
[1750683018608,0.65680892,101720.0,101710.0,0.0005628]
[1750683019879,0.65680892,101720.0,101710.0,0.0035628]
[1750683020509,0.65680892,101720.0,101710.0,0.0045628]
[1750683021114,0.68856426,101720.0,101710.0,0.0045628]
[1750683021371,5.40878728,101720.0,101710.0,0.0045628]
[1750683022015,5.47168728,101720.0,101710.0,0.0045628]
[1750683022630,5.40973194,101720.0,101710.0,0.0045628]
[1750683022790,5.40973194,101720.0,101710.0,0.0005628]
[1750683022989,5.41073194,101720.0,101710.0,0.0005628]
[1750683023255,5.37803194,101720.0,101710.0,0.0005628]
[1750683023884,5.37802734,101720.0,101710.0,0.0005628]
[1750683024128,5.37902734,101720.0,101710.0,0.0005628]
[1750683024714,5.42346734,101720.0,101710.0,0.0005628]
[1750683025123,5.65088734,101720.0,101710.0,0.0005628]
[1750683025341,5.58858734,101720.0,101710.0,0.0005628]
[1750683026917,5.58858849,101720.0,101710.0,0.0005628]
[1750683029642,5.58859261,101720.0,101710.0,0.0005628]
[1750683030270,5.57939592,101720.0,101710.0,0.0005628]
[1750683030473,5.58859261,101720.0,101710.0,0.0005628]
[1750683031513,5.24859261,101720.0,101710.0,0.0005628]
[1750683032772,5.24859261,101720.0,101710.0,0.0328628]
[1750683033615,5.24859261,101720.0,101710.0,0.0005628]
[1750683034474,5.72666793,101720.0,101710.0,0.0005628]
[1750683035578,5.72666753,101720.0,101710.0,0.0005628]
[1750683036202,5.72666753,101720.0,101700.0,0.01484827]
[1750683036426,0.57448384,101710.0,101700.0,0.04554827]
[1750683037067,0.60405484,101710.0,101700.0,0.04554827]
[1750683037715,0.50405484,101710.0,101700.0,0.04554827]
[1750683037926,0.50405484,101710.0,101700.0,0.04654827]
[1750683038518,0.51326158,101710.0,101700.0,0.04654827]
[1750683041373,0.51326277,101710.0,101700.0,0.04654827]
[1750683044272,0.50405484,101710.0,101700.0,0.04654827]
[1750683044505,0.51328017,101710.0,101700.0,0.04654827]
[1750683045349,0.85328017,101710.0,101700.0,0.04654827]
[1750683046006,0.85328027,101710.0,101700.0,0.04654827]
[1750683047202,0.84405484,101710.0,101700.0,0.04654827]
[1750683047407,0.85328035,101710.0,101700.0,0.04654827]
[1750683049093,0.87174337,101710.0,101700.0,0.04654827]
[1750683049308,0.85328035,101710.0,101700.0,0.04654827]
[1750683049539,0.85328558,101710.0,101700.0,0.04654827]
[1750683050386,0.85328578,101710.0,101700.0,0.04654827]
[1750683053124,0.85328451,101710.0,101700.0,0.04654827]
[1750683054785,0.85328378,101710.0,101700.0,0.04654827]
[1750683056365,0.85328361,101710.0,101700.0,0.04654827]
[1750683059242,0.85328315,101710.0,101700.0,0.04654827]
[1750683059473,1.01828315,101710.0,101700.0,0.04654827]
[1750683059679,5.92506488,101710.0,101700.0,0.001]
[1750683059850,5.87169167,101710.0,101700.0,0.001]
[1750683060682,0.34,101700.0,101690.0,0.0616]
[1750683060870,0.92371257,101700.0,101690.0,0.0616]
[1750683061081,0.63647065,101700.0,101690.0,0.0616]
[1750683061282,0.62724192,101700.0,101690.0,0.0616]
[1750683061626,0.030571,101710.0,101700.0,0.064]
[1750683061867,0.37879913,101710.0,101700.0,0.064]
[1750683062093,0.00046181,101720.0,101710.0,0.064]
[1750683062340,0.00046181,101720.0,101710.0,0.52968263]
[1750683062560,0.00046181,101720.0,101710.0,0.24244071]
[1750683063601,0.00046181,101720.0,101710.0,0.24144071]
[1750683063822,0.00046181,101720.0,101710.0,0.24444071]
[1750683064021,0.34046181,101720.0,101710.0,0.24444071]
[1750683064443,0.34046181,101720.0,101710.0,0.25044071]
[1750683068582,0.28770373,101720.0,101710.0,0.17129939]
[1750683068826,0.62770373,101720.0,101710.0,0.17129939]
[1750683073210,0.34046181,101720.0,101710.0,0.17129939]
[1750683073387,0.62770373,101720.0,101710.0,0.17129939]
[1750683074806,0.62770373,101720.0,101710.0,0.071]
[1750683075119,0.62770373,101720.0,101710.0,0.009]
[1750683075653,0.65727073,101720.0,101710.0,0.003]
[1750683075815,0.34,101710.0,101700.0,0.0634]
[1750683076454,0.62724192,101710.0,101700.0,0.0634]
[1750683077504,0.28724192,101710.0,101700.0,0.0634]
[1750683078282,0.28724192,101710.0,101700.0,0.0674]
[1750683078493,0.31727073,101720.0,101710.0,0.0621]
[1750683078706,0.28770373,101720.0,101710.0,0.0621]
[1750683079532,0.28770373,101720.0,101710.0,0.4621]
[1750683079771,0.23770373,101720.0,101710.0,0.4621]
[1750683079993,0.534444,101730.0,101720.0,0.063]
[1750683080207,0.91448384,101730.0,101720.0,0.06306547]
[1750683081819,0.91648384,101730.0,101720.0,0.06306547]
[1750683083744,0.62924192,101730.0,101720.0,0.06306547]
[1750683084199,0.28924192,101730.0,101720.0,0.06306547]
[1750683086876,0.91648384,101730.0,101720.0,0.06306547]
[1750683090190,5.96648384,101730.0,101720.0,0.06306547]
[1750683090670,5.67924192,101730.0,101720.0,0.06306547]
[1750683091761,5.392,101730.0,101720.0,0.06306547]
[1750683092213,5.67924192,101730.0,101720.0,0.06306547]
[1750683096242,5.96648384,101730.0,101720.0,0.06306547]
[1750683097096,5.67924192,101730.0,101720.0,0.06306547]
[1750683097604,5.96648384,101730.0,101720.0,0.06306547]
[1750683098061,5.97570352,101730.0,101720.0,0.06306547]
[1750683100299,5.97570451,101730.0,101720.0,6.547e-05]
[1750683100880,5.97570451,101730.0,101720.0,0.06236547]
[1750683104350,5.97570525,101730.0,101720.0,0.06236547]
[1750683104858,5.63370525,101730.0,101720.0,0.06236547]
[1750683106746,5.63370556,101730.0,101720.0,0.06236547]
[1750683110033,5.63370556,101730.0,101720.0,6.547e-05]
[1750683110260,5.63370556,101730.0,101720.0,0.06136547]
[1750683112084,5.63371059,101730.0,101720.0,0.06136547]
[1750683112499,5.62448384,101730.0,101720.0,0.06136547]
[1750683112705,5.63371141,101730.0,101720.0,0.06136547]
[1750683114926,5.63371314,101730.0,101720.0,0.06136547]
[1750683117293,5.63371305,101730.0,101720.0,0.06136547]
[1750683118800,5.63371248,101730.0,101720.0,0.06136547]
[1750683119069,5.97371248,101730.0,101720.0,0.06136547]
[1750683119875,6.61029975,101730.0,101720.0,6.547e-05]
[1750683120086,6.61030075,101730.0,101720.0,6.547e-05]
[1750683120260,6.62995994,101730.0,101720.0,6.547e-05]
[1750683120472,6.79008927,101730.0,101720.0,6.547e-05]
[1750683120675,6.84919005,101730.0,101720.0,6.547e-05]
[1750683120875,6.83936089,101730.0,101720.0,6.547e-05]
[1750683121301,7.12657275,101730.0,101720.0,6.547e-05]
[1750683121500,7.1167433,101730.0,101720.0,6.547e-05]
[1750683121708,0.34,101710.0,101690.0,0.14094132]
[1750683121914,0.57448384,101700.0,101690.0,0.14140313]
[1750683123199,5.62448384,101700.0,101690.0,0.14140313]
[1750683123820,5.05,101700.0,101690.0,0.14140313]
[1750683124053,5.33724192,101700.0,101690.0,0.14240313]
[1750683124287,0.34,101710.0,101690.0,0.14240313]
[1750683124566,0.16464,101710.0,101700.0,0.0627]
[1750683124760,5.67724192,101710.0,101700.0,0.0627]
[1750683124985,5.39,101710.0,101700.0,0.0627]
[1750683125210,5.67724192,101710.0,101700.0,0.0627]
[1750683129270,0.34,101700.0,101690.0,0.06286181]
[1750683129473,0.91448384,101700.0,101690.0,0.06286181]
[1750683130751,0.91448384,101700.0,101690.0,0.06486181]
[1750683131640,5.9926258,101700.0,101690.0,0.00256181]
[1750683131866,5.96448384,101700.0,101690.0,0.06716181]
[1750683132067,5.96448384,101700.0,101690.0,0.06816181]
[1750683136347,5.39,101700.0,101690.0,0.06816181]
[1750683136584,0.28724192,101700.0,101690.0,0.00356181]
[1750683136814,0.578095,101710.0,101690.0,0.00356181]
[1750683137032,0.28724192,101700.0,101690.0,0.00356181]
[1750683137243,0.28724192,101700.0,101690.0,0.06696181]
[1750683138402,0.28724192,101700.0,101690.0,0.06596181]
[1750683139559,0.28724192,101700.0,101690.0,0.06696181]
[1750683139993,0.57448384,101700.0,101690.0,0.06696181]
[1750683140214,0.28724192,101700.0,101690.0,0.06696181]
[1750683140881,0.57448384,101700.0,101690.0,0.06696181]
[1750683141364,0.28724192,101700.0,101690.0,0.06696181]
[1750683143172,5.43392,101710.0,101700.0,0.0618]
[1750683143393,5.67472192,101710.0,101700.0,0.0618]
[1750683144527,5.68393043,101710.0,101700.0,0.0618]
[1750683146777,5.68393193,101710.0,101700.0,0.0618]
[1750683147413,5.39669001,101710.0,101700.0,0.0618]
[1750683147633,5.68393193,101710.0,101700.0,0.0618]
[1750683147857,0.62472192,101710.0,101700.0,0.0618]